bitfinex/quotes_ETHUSD_20251023
["timestamp","ask_amount","ask_price","bid_price","bid_amount"]
[1761226084048,10.94395926,3842.8,3842.7,0.002]
[1761226085257,5.62955926,3842.8,3842.7,0.002]
[1761226085561,3.93317682,3842.8,3842.7,0.002]
[1761226085778,8.81437682,3842.8,3842.7,0.002]
[1761226086259,5.35253547,3842.8,3842.7,0.002]
[1761226086461,0.6881863,3842.8,3842.7,0.002]
[1761226086661,0.5577863,3843.1,3842.7,0.4653]
[1761226086831,0.5587863,3843.1,3842.8,2.602264]
[1761226087038,3.326,3843.0,3842.9,3.06548938]
[1761226087232,3.326,3843.0,3842.9,3.06550146]
[1761226087742,3.326,3843.0,3842.9,0.4633]
[1761226088762,3.326,3843.0,3842.7,0.002]
[1761226088763,0.50688,3842.9,3842.7,0.002]
[1761226089137,3.10908216,3842.9,3842.7,0.002]
[1761226089487,0.50688,3842.9,3842.7,0.002]
[1761226089839,0.50688,3842.9,3842.7,0.4653]
[1761226090932,0.001,3843.1,3842.7,0.4653]
[1761226091138,0.325,3843.0,3842.9,2.60215247]
[1761226091569,0.325,3843.0,3842.9,3.06545247]
[1761226091777,0.325,3843.0,3842.9,0.4633]
[1761226091949,0.001,3843.1,3842.9,0.4633]
[1761226092287,3.032,3843.0,3842.9,3.06543512]
[1761226092570,3.032,3843.0,3842.7,0.002]
[1761226092869,3.032,3843.0,3842.8,3.06556446]
[1761226093279,3.032,3843.0,3842.9,3.06550146]
[1761226093577,3.032,3843.0,3842.9,0.4633]
[1761226093782,3.0312,3843.0,3842.9,0.4633]
[1761226095279,3.0312,3843.0,3842.7,0.002]
[1761226095449,3.0312,3843.0,3842.8,0.4633]
[1761226096663,0.1304,3842.9,3842.8,0.4633]
[1761226098780,3.323,3843.1,3842.8,3.06556917]
[1761226098981,3.323,3843.1,3842.9,2.60220146]
[1761226099284,3.323,3843.1,3842.9,3.06549089]
[1761226099486,3.323,3843.1,3843.0,0.4633]
[1761226099982,4.8782,3843.1,3842.8,0.4633]
[1761226100283,4.8782,3843.1,3842.8,3.0655615]
[1761226100656,3.323,3843.1,3843.0,2.60213374]
[1761226101065,3.323,3843.1,3843.0,3.06543374]
[1761226103490,3.323,3843.1,3843.0,0.4633]
[1761226103886,3.323,3843.1,3843.0,3.06543374]
[1761226104664,3.323,3843.1,3843.0,0.4633]
[1761226104987,3.323,3843.1,3843.0,3.06543374]
[1761226105178,3.323,3843.1,3843.0,2.60213374]
[1761226105575,3.323,3843.1,3843.0,3.06433374]
[1761226107586,0.001,3843.1,3843.0,3.63119277]
[1761226108266,0.001,3843.1,3843.0,5.2124141]
[1761226108469,0.001,3843.1,3843.0,8.50339277]
[1761226108682,0.001,3843.1,3843.0,8.63379277]
[1761226109866,0.001,3843.1,3843.0,7.07859277]
[1761226112919,0.001,3843.1,3843.0,3.03173374]
[1761226113208,0.001,3843.1,3843.0,2.60213374]
[1761226113388,0.1314,3843.1,3843.0,2.60213374]
[1761226114284,0.1314,3843.1,3843.0,3.03173374]
[1761226114481,0.001,3843.1,3843.0,3.03173374]
[1761226115478,0.001,3843.1,3843.0,3.60836853]
[1761226115675,0.001,3843.1,3843.0,3.73876853]
[1761226118188,0.0002,3843.1,3843.0,3.73876853]
[1761226118820,0.0002,3843.1,3843.0,3.76478986]
[1761226119490,0.0002,3843.1,3843.0,3.76678986]
[1761226121130,0.0002,3843.1,3843.0,3.74076853]
[1761226121642,0.0002,3843.1,3843.0,3.84486972]
[1761226122933,0.0002,3843.1,3843.0,3.16413374]
[1761226124748,0.0002,3843.1,3843.0,2.73453374]
[1761226125050,0.0002,3843.1,3843.0,2.60413374]
[1761226126450,0.0002,3843.1,3843.0,3.03373374]
[1761226126630,0.0002,3843.1,3843.0,2.60413374]
[1761226128126,0.0002,3843.1,3843.0,3.81479445]
[1761226131266,0.0002,3843.1,3843.0,5.39601578]
[1761226131558,0.0002,3843.1,3843.0,5.36999445]
[1761226136373,1e-08,3843.6,3843.5,2.60179523]
[1761226136576,1e-08,3843.6,3843.5,8.22242271]
[1761226136770,1e-08,3843.6,3843.5,9.47426498]
[1761226136965,1e-08,3843.6,3843.5,13.25426498]
[1761226137173,1e-08,3843.6,3843.5,13.358338]
[1761226138160,1e-08,3843.6,3843.5,9.578338]
[1761226138896,1e-08,3843.6,3843.5,8.023138]
[1761226139896,1e-08,3843.6,3843.5,9.578338]
[1761226140766,1e-08,3843.6,3843.5,13.358338]
[1761226142579,0.00020001,3843.9,3843.8,2.60159217]
[1761226142766,0.00020001,3843.9,3843.8,9.43551242]
[1761226143096,0.00020001,3843.9,3843.8,9.86301242]
[1761226144703,0.00020001,3843.9,3843.8,9.43551242]
[1761226144891,0.46990001,3843.9,3843.8,7.88031242]
[1761226146392,0.00020001,3843.9,3843.8,7.88031242]
[1761226147814,0.46670001,3843.9,3843.8,7.88031242]
[1761226148211,0.46670001,3843.9,3843.8,8.01071242]
[1761226149292,0.00020001,3843.9,3843.8,8.01071242]
[1761226150385,0.46670001,3843.9,3843.8,8.01071242]
[1761226152018,0.00020001,3843.9,3843.8,8.01071242]
[1761226152407,0.00020001,3843.9,3843.8,9.56591242]
[1761226152722,0.00020001,3843.9,3843.8,9.99341242]
[1761226153224,0.00020001,3843.9,3843.8,9.99541242]
[1761226157508,0.00020001,3843.9,3843.8,9.56791242]
[1761226157735,0.00020001,3843.9,3843.8,9.99541242]
[1761226157923,0.00020001,3843.9,3843.8,13.77541242]
[1761226160340,0.00020001,3843.9,3843.8,14.28229242]
[1761226161521,0.00020001,3843.9,3843.8,13.77541242]
[1761226161923,0.00020001,3843.9,3843.8,13.34791242]
[1761226167243,0.00040001,3844.0,3843.9,4.15672449]
[1761226167414,0.00040001,3844.0,3843.9,6.20709821]
[1761226167610,0.00040001,3844.0,3843.9,6.18108297]
[1761226168242,0.00040001,3844.0,3843.9,5.75168297]
[1761226168661,0.00040001,3844.0,3843.9,6.21688297]
[1761226169033,0.00040001,3844.0,3843.9,5.75168297]
[1761226169744,0.00040001,3844.0,3843.9,9.53168297]
[1761226170430,0.00040001,3844.0,3843.9,9.99688297]
[1761226171759,0.00040001,3844.0,3843.9,6.21688297]
[1761226172130,0.001,3844.3,3843.9,6.21688297]
[1761226172330,0.1408,3844.9,3844.7,2.60098317]
[1761226172526,0.1408,3844.9,3844.7,5.90098317]
[1761226172757,0.3824,3844.8,3844.7,6.03138317]
[1761226177878,0.3824,3844.8,3844.7,5.90098317]
[1761226180866,0.001,3844.8,3844.7,5.90098317]
[1761226181068,0.001,3844.8,3844.7,6.75118767]
[1761226182185,0.4662,3844.8,3844.7,6.75118767]
[1761226182579,0.4662,3844.8,3844.7,5.90098317]
[1761226183787,0.4622,3844.8,3844.7,5.90098317]
[1761226184152,0.4622,3844.8,3844.7,2.60098317]
[1761226184359,0.4622,3844.8,3844.7,5.90098317]
[1761226191508,0.4614,3844.8,3844.7,5.90098317]
[1761226192415,0.0002,3844.8,3844.7,6.76442781]
[1761226192709,0.001,3845.2,3844.7,6.76442781]
[1761226192710,0.4572,3845.2,3844.7,5.71864464]
[1761226192917,0.4572,3845.2,3845.1,2.60071259]
[1761226193112,0.4572,3845.2,3845.1,6.68095462]
[1761226193297,0.0694,3845.6,3845.5,2.60044207]
[1761226193881,0.5266,3845.6,3845.4,5.90050131]
[1761226194415,0.5266,3845.6,3845.5,2.60044207]
[1761226195109,0.5266,3845.6,3845.5,2.62644649]
[1761226195614,0.5266,3845.6,3845.5,2.60044207]
[1761226196824,0.001,3845.6,3845.5,3.47654083]
[1761226196994,0.001,3845.6,3845.5,3.45053641]
[1761226197782,0.001,3845.6,3845.5,3.47654083]
[1761226198308,0.001,3845.6,3845.5,3.45053641]
[1761226200736,0.4543,3845.6,3845.5,3.45053641]
[1761226200895,0.4543,3845.6,3845.5,2.60044207]
[1761226201100,0.001,3845.6,3845.5,2.60044207]
[1761226201501,0.4543,3845.6,3845.5,2.60044207]
[1761226202229,0.001,3845.6,3845.5,4.15564207]
[1761226202530,0.001,3845.6,3845.5,3.89010817]
[1761226202691,0.4657,3845.6,3845.5,6.90605641]
[1761226202890,0.001,3845.6,3845.5,6.90605641]
[1761226203839,0.0642,3848.0,3845.6,1.41345577]
[1761226204050,0.0642,3848.0,3847.9,2.59882013]
[1761226204246,0.2331,3849.0,3848.4,2.59848248]
[1761226204424,0.2331,3849.0,3847.9,3.31]
[1761226204596,1.7883,3849.0,3848.0,2.59872938]
[1761226204797,0.2331,3849.0,3848.2,2.59858313]
[1761226205027,0.2331,3849.0,3848.3,2.59849885]
[1761226205221,0.2331,3849.0,3848.4,2.59848248]
[1761226205715,0.50788,3848.9,3848.4,2.59848248]
[1761226205920,0.001,3848.9,3848.4,2.59848248]
[1761226206351,0.001,3848.9,3848.0,3.315]
[1761226206557,0.001,3848.9,3848.3,2.5984974]
[1761226206722,0.50788,3848.9,3848.4,2.59848248]
[1761226207412,0.50788,3848.9,3847.5,2.59907585]
[1761226207616,0.50788,3848.9,3847.5,3.315]
[1761226207813,0.50788,3848.9,3846.6,2.59967838]
[1761226207814,0.50688,3848.3,3847.6,2.59897087]
[1761226208016,0.50688,3848.1,3847.7,2.59891399]
[1761226208263,0.50688,3848.4,3847.8,2.59888112]
[1761226208413,0.0797,3847.4,3847.3,5.91422543]
[1761226208727,2.59941569,3848.5,3847.8,2.59888767]
[1761226208728,0.001,3848.5,3847.8,2.59888767]
[1761226208927,0.0797,3847.9,3847.8,2.59888767]
[1761226209150,0.0797,3847.9,3847.3,3.315]
[1761226209645,0.0797,3847.9,3847.8,2.59888767]
[1761226210552,0.0797,3847.9,3847.3,2.59922461]
[1761226210729,0.50688,3847.8,3847.1,2.59935338]
[1761226211054,0.2331,3846.5,3846.4,2.5997766]
[1761226211222,0.50688,3847.6,3846.9,2.59948195]
[1761226211418,0.50688,3847.6,3846.0,3.314]
[1761226211646,0.50688,3847.0,3845.1,0.2353]
[1761226211844,0.50688,3847.0,3845.2,5.35164495]
[1761226211845,0.2331,3845.3,3845.2,5.35164495]
[1761226212044,0.2331,3846.1,3845.8,2.60020425]
[1761226212359,0.2331,3846.1,3845.9,2.60016905]
[1761226212547,0.2331,3846.1,3845.2,2.751]
[1761226212753,0.2331,3845.3,3845.2,5.35164495]
[1761226213071,0.2331,3846.1,3845.9,2.60016883]
[1761226213228,0.2331,3846.1,3846.0,2.600104]
[1761226213637,0.2331,3846.1,3845.8,2.60022086]
[1761226213978,0.2331,3845.9,3845.8,2.60023922]
[1761226215760,0.2331,3845.9,3845.0,2.60078023]
[1761226215959,0.2323,3845.9,3845.8,2.60023922]
[1761226216270,0.2323,3845.9,3845.7,2.60029481]
[1761226216481,0.2323,3845.9,3845.8,2.60023922]
[1761226216684,0.2331,3846.6,3845.7,2.60030683]
[1761226216865,0.2331,3846.6,3845.8,2.60023922]
[1761226217178,0.2331,3846.6,3846.4,2.59978941]
[1761226217539,0.2331,3846.6,3846.5,2.59976602]
[1761226217736,0.2331,3846.6,3846.4,2.59981103]
[1761226218050,0.2331,3846.6,3846.5,2.59976602]
[1761226218669,0.2331,3846.6,3846.4,2.59981675]
[1761226218989,0.2331,3846.6,3846.5,2.59976602]
[1761226219685,0.2331,3846.6,3845.7,0.59163068]
[1761226219884,0.2323,3845.8,3844.6,1.5572]
[1761226220054,0.2323,3845.8,3844.7,3.8026356]
[1761226220252,0.2323,3845.8,3844.8,0.02600915]
[1761226220571,0.2323,3845.8,3845.6,2.60035403]
[1761226220771,0.2323,3845.8,3845.6,2.60036266]
[1761226220972,0.2323,3845.8,3844.7,2.018]
[1761226221199,0.2323,3845.8,3844.9,2.60084787]
[1761226221369,0.2323,3845.8,3845.7,2.60030683]
[1761226221571,0.2323,3845.8,3844.8,0.5338]
[1761226221773,0.2323,3845.8,3845.4,2.60045165]
[1761226221972,0.2323,3845.8,3845.7,2.60030683]
[1761226222167,0.2323,3845.8,3845.5,2.60038252]
[1761226222399,0.2323,3845.8,3845.0,2.60078023]
[1761226222606,0.2323,3845.8,3845.6,2.60035157]
[1761226222897,0.1304,3845.6,3845.5,2.60043139]
[1761226223382,2.59978363,3846.5,3845.5,2.60043139]
[1761226223383,0.50688,3846.5,3846.0,2.60006068]
[1761226223799,0.50688,3846.5,3846.1,2.60003247]
[1761226223976,0.2331,3846.6,3845.5,0.52210022]
[1761226224173,0.2331,3846.6,3846.4,2.59981107]
[1761226224498,0.2331,3846.6,3846.5,2.59976602]
[1761226225099,0.2331,3846.6,3845.7,0.5932]
[1761226225100,0.3627,3846.6,3846.4,2.59976983]
[1761226225304,0.2331,3846.6,3846.5,2.59976602]
[1761226225509,0.2331,3846.6,3845.9,2.60017161]
[1761226225510,0.2331,3847.1,3847.0,2.59942812]
[1761226225870,0.3627,3847.1,3847.0,2.59942812]
[1761226226301,0.1296,3847.1,3847.0,2.59942812]
[1761226226472,0.2252,3847.4,3847.3,2.59922543]
[1761226226672,0.29,3848.2,3847.8,2.59888767]
[1761226226976,0.2252,3848.3,3847.7,0.02598955]
[1761226227179,0.2252,3848.8,3848.4,2.59848248]
[1761226227402,0.001,3848.9,3848.4,2.59848248]
[1761226227578,0.2252,3848.6,3848.4,2.59848248]
[1761226227778,0.001,3848.9,3848.4,2.59848248]
[1761226229581,0.001,3848.9,3847.3,0.35648883]
[1761226229911,0.50688,3848.8,3848.2,2.59859665]
[1761226230090,0.50688,3848.8,3848.1,2.59866522]
[1761226230290,0.50788,3848.9,3848.1,2.598671]
[1761226230492,0.50788,3848.9,3848.2,2.59855754]
[1761226230687,0.50688,3848.6,3847.4,3.71352393]
[1761226230904,0.50788,3848.5,3847.4,3.327]
[1761226231218,0.50788,3848.5,3847.4,2.59909668]
[1761226231219,0.0956,3847.5,3847.4,2.59909668]
[1761226231422,0.0956,3847.5,3847.3,2.5991746]
[1761226231626,0.0956,3847.5,3847.0,2.59941827]
[1761226231794,0.0956,3847.5,3847.1,2.59933316]
[1761226231986,0.0956,3847.5,3846.4,3.328]
[1761226232187,0.2207,3846.5,3845.7,0.2193]
[1761226232592,0.2207,3846.5,3845.6,5.92931213]
[1761226232911,0.2207,3846.5,3845.7,0.59313121]
[1761226233315,0.2207,3846.5,3846.2,2.59996302]
[1761226233526,0.2207,3846.5,3846.1,2.59998741]
[1761226233827,0.2207,3846.5,3845.6,3.329]
[1761226234003,0.2207,3846.5,3846.0,2.60009127]
[1761226234324,0.2207,3846.5,3845.6,3.329]
[1761226234526,0.2207,3846.5,3845.5,0.002]
[1761226234690,0.2207,3846.5,3845.5,2.60243425]
[1761226234691,0.2207,3845.6,3845.5,2.60243425]
[1761226234898,0.50688,3846.4,3846.1,2.59997822]
[1761226235129,1.7759,3846.5,3845.5,0.85530521]
[1761226235130,0.2207,3846.5,3845.6,0.02600374]
[1761226235304,0.2207,3846.5,3846.2,2.59990333]
[1761226235494,1.7759,3847.0,3845.6,0.4575]
[1761226235495,0.50688,3846.9,3845.9,2.60011387]
[1761226235694,1.068458,3846.9,3845.6,0.4575]
[1761226235901,2.623658,3846.9,3846.4,2.59983053]
[1761226236097,2.623658,3846.9,3845.6,0.4575]
[1761226236098,0.50688,3846.7,3846.0,2.60004485]
[1761226236351,0.50688,3846.8,3846.1,2.59998978]
[1761226236631,0.1304,3846.1,3846.0,2.600104]
[1761226236812,0.1304,3846.1,3846.0,2.62610504]
[1761226237018,0.1304,3846.1,3846.0,3.08360504]
[1761226237338,2.06208,3846.9,3846.5,2.59974861]
[1761226237514,0.1296,3846.6,3846.4,2.59982119]
[1761226237712,2.624158,3846.9,3846.5,2.59976602]
[1761226237898,3.5587,3847.0,3846.1,0.6768]
[1761226237899,0.2207,3847.0,3846.1,0.6768]
[1761226238100,0.1296,3846.2,3846.1,2.60000637]
[1761226238604,0.1296,3846.5,3846.4,2.59981862]
[1761226239200,0.1296,3846.5,3846.4,3.05731862]
[1761226240128,0.1296,3846.5,3846.4,3.64497098]
[1761226240494,0.50608,3847.4,3846.9,2.59946523]
[1761226240822,0.1296,3847.1,3847.0,2.59942812]
[1761226241009,0.1296,3847.1,3847.0,2.85937093]
[1761226241330,0.001,3848.5,3847.0,4.05344281]
[1761226241528,0.001,3848.5,3848.1,2.59863863]
[1761226241715,0.001,3848.5,3847.1,0.6768]
[1761226241716,0.001,3848.5,3848.2,2.59860461]
[1761226241914,0.001,3848.5,3847.1,0.6768]
[1761226241915,0.001,3848.5,3848.3,2.59854432]
[1761226242121,0.001,3848.5,3847.2,0.4575]
[1761226242429,0.001,3848.5,3848.3,2.59850052]
[1761226242820,0.001,3848.5,3847.9,2.59876701]
[1761226242821,0.50788,3848.5,3847.9,2.59876701]
[1761226243127,0.50788,3848.5,3848.0,2.5987343]
[1761226243293,0.50788,3848.5,3847.9,2.59881134]
[1761226243498,0.50788,3848.5,3847.2,0.4575]
[1761226243499,0.50688,3848.3,3847.2,0.4575]
[1761226243708,0.50688,3848.3,3847.7,2.59890649]
[1761226244022,0.50688,3848.3,3847.8,2.59888084]
[1761226244429,0.50688,3848.3,3847.3,2.59922543]
[1761226244744,0.50688,3848.3,3847.1,0.2193]
[1761226244745,0.001,3848.5,3847.5,3.05657187]
[1761226244933,0.001,3848.5,3848.3,2.59851912]
[1761226245138,0.001,3848.5,3847.6,3.05646035]
[1761226245339,0.50688,3848.2,3847.5,2.59907209]
[1761226245524,0.50688,3848.2,3846.8,3.27634371]
[1761226245525,0.50688,3848.1,3847.2,2.59927673]
[1761226245723,0.50688,3848.1,3846.8,0.6768]
[1761226245724,3.10581278,3847.8,3846.8,0.2193]
[1761226245970,0.2207,3846.9,3846.2,0.2193]
[1761226246250,0.50688,3846.7,3845.6,2.6023735]
[1761226246447,0.406458,3846.6,3845.8,2.60018779]
[1761226246636,0.50688,3846.4,3845.6,0.002]
[1761226246836,0.50688,3846.2,3845.6,0.002]
[1761226247036,0.406458,3846.6,3845.6,0.002]
[1761226247347,2.59997688,3846.2,3845.6,0.002]
[1761226247564,0.50688,3846.1,3845.6,0.002]
[1761226247747,0.72758,3845.7,3845.6,0.002]
[1761226248619,3.32788683,3845.7,3845.6,0.002]
[1761226249041,3.339,3846.0,3845.6,0.002]
[1761226249255,0.2207,3846.3,3845.6,0.002]
[1761226249256,0.50688,3846.3,3845.6,0.002]
[1761226249555,3.437,3846.4,3845.6,0.002]
[1761226249556,0.50688,3845.8,3845.6,0.002]
[1761226250023,0.1002,3845.7,3845.6,0.002]
[1761226250232,0.50688,3845.8,3845.6,0.002]
[1761226251242,0.1304,3845.7,3845.6,2.60237445]
[1761226251459,0.1304,3845.7,3845.6,0.002]
[1761226251621,0.528128,3845.7,3845.6,0.002]
[1761226251816,1.352508,3845.7,3845.6,0.002]
[1761226252034,1.035008,3845.7,3845.6,0.002]
[1761226253821,1.134008,3845.7,3845.6,0.002]
[1761226254251,3.73431483,3845.7,3845.6,0.002]
[1761226254552,1.035008,3845.7,3845.6,0.002]
[1761226255826,2.590208,3845.7,3845.6,0.002]
[1761226256027,3.73431483,3845.7,3845.6,0.002]
[1761226257163,1.035008,3845.7,3845.6,0.002]
[1761226257359,3.4694,3845.7,3845.6,0.002]
[1761226257659,4.54828689,3847.3,3845.8,2.60019592]
[1761226257660,2.59970768,3846.6,3845.8,2.60019592]
[1761226257823,3.339,3846.5,3845.7,2.60030683]
[1761226258025,3.339,3846.5,3846.0,2.60009963]
[1761226258266,0.2207,3846.9,3845.6,0.002]
[1761226258420,0.2207,3846.9,3846.2,2.59990969]
[1761226258621,3.34,3846.8,3846.3,2.59985856]
[1761226258928,3.34,3846.7,3846.2,2.59995621]
[1761226259120,1.5552,3846.6,3846.2,2.59994577]
[1761226259321,2.59930218,3847.2,3846.2,2.59994577]
[1761226259322,0.001,3847.4,3846.3,2.5999012]
[1761226259555,0.001,3847.4,3846.6,2.59968429]
[1761226259752,0.001,3847.4,3846.3,3.05198489]
[1761226259960,0.001,3847.4,3846.7,2.59958054]
[1761226260123,0.001,3847.4,3846.8,2.59955242]
[1761226260325,0.41375935,3847.4,3846.1,0.6729]
[1761226260525,0.41375935,3847.4,3846.2,2.5999688]
[1761226260526,2.59930516,3847.2,3846.2,2.5999688]
[1761226260728,0.50688,3847.0,3846.4,2.59978918]
[1761226260950,0.1055,3847.3,3846.1,0.2208]
[1761226261154,0.50688,3846.8,3846.7,2.59961623]
[1761226261355,0.001,3847.4,3846.2,0.02599968]
[1761226261556,0.001,3847.4,3847.3,2.82002543]
[1761226262055,0.001,3848.2,3847.7,4.15415522]
[1761226262507,0.001,3848.2,3847.7,3.05105522]
[1761226262624,0.001,3848.2,3847.7,2.59895522]
[1761226263030,0.001,3848.2,3847.7,3.05105522]
[1761226263762,0.001,3848.2,3847.7,3.61606509]
[1761226264965,0.0002,3847.8,3847.7,3.61606509]
[1761226266545,0.0002,3847.8,3847.7,3.64205464]
[1761226266751,0.0002,3847.8,3847.5,2.59904613]
[1761226266995,0.0002,3847.8,3847.3,0.2208]
[1761226267195,0.50708,3847.8,3847.2,0.2208]
[1761226267394,0.50708,3847.8,3847.3,2.59920891]
[1761226267567,0.50708,3847.8,3847.1,2.59929406]
[1761226267895,0.50688,3847.0,3846.1,0.2208]
[1761226268048,0.1296,3846.5,3846.2,0.4521]
[1761226268250,0.50688,3846.8,3846.2,2.59996341]
[1761226268562,0.50688,3846.8,3846.2,2.59995839]
[1761226268751,0.899918,3846.8,3845.5,0.002]
[1761226269086,3.32018683,3845.7,3845.5,0.002]
[1761226269290,4.07588,3845.7,3845.5,0.002]
[1761226269451,8.33268683,3845.7,3845.5,0.002]
[1761226269781,6.82566623,3845.7,3845.5,0.002]
[1761226270081,0.213,3846.9,3845.5,0.002]
[1761226270310,0.50688,3846.6,3845.6,2.602349]
[1761226270579,0.50688,3846.8,3845.6,0.4541]
[1761226270780,0.50688,3846.5,3845.6,0.002]
[1761226270950,0.417508,3846.4,3845.6,0.002]
[1761226271150,0.50688,3846.3,3845.6,2.6023688]
[1761226271378,0.50688,3846.3,3845.8,2.6002006]
[1761226271577,0.50688,3846.3,3845.6,0.002]
[1761226271578,2.06208,3846.3,3845.6,0.002]
[1761226271781,0.213,3845.7,3845.6,0.002]
[1761226272061,4.07688,3845.7,3845.6,0.002]
[1761226272261,4.741388,3845.7,3845.6,0.002]
[1761226272461,1.384388,3845.7,3845.6,0.002]
[1761226273067,7.34269483,3845.7,3845.6,0.002]
[1761226273887,6.83581483,3845.7,3845.6,0.002]
[1761226274099,8.89789483,3845.7,3845.6,0.002]
[1761226274789,2.939588,3845.7,3845.6,0.002]
[1761226275086,6.299588,3845.7,3845.6,0.002]
[1761226275254,8.89989483,3845.7,3845.6,0.002]
[1761226275683,5.53989483,3845.7,3845.6,0.002]
[1761226275886,8.89989483,3845.7,3845.6,0.002]
[1761226277462,2.939588,3845.7,3845.6,0.002]
[1761226277683,6.197288,3845.7,3845.6,0.002]
[1761226277998,0.50688,3845.7,3845.6,0.002]
[1761226278203,0.63728,3845.7,3845.6,0.002]
[1761226278355,3.99628,3845.7,3845.6,0.002]
[1761226278555,0.1304,3845.7,3845.6,0.002]
[1761226278751,3.4884,3845.7,3845.6,0.002]
[1761226278982,3.4884,3845.7,3845.6,0.001]
[1761226278983,22.14350671,3845.7,3845.6,0.001]
[1761226280084,0.50688,3845.2,3845.1,0.002]
[1761226280271,21.69570483,3845.2,3845.1,0.002]
[1761226280598,21.79600483,3845.2,3845.1,0.002]
[1761226280758,24.39793546,3845.2,3845.1,0.002]
[1761226281475,3.10772787,3844.9,3844.6,0.002]
[1761226281776,4.66292787,3844.9,3844.6,0.002]
[1761226281978,4.97642787,3844.9,3844.6,0.002]
[1761226284188,10.28742787,3844.9,3844.6,0.002]
[1761226284390,11.64676849,3844.9,3844.6,0.002]
[1761226285359,4.66299552,3844.8,3844.6,0.002]
[1761226285563,4.76229552,3844.8,3844.6,0.002]
[1761226285768,3.20709552,3844.8,3844.6,0.002]
[1761226285967,6.56809552,3844.8,3844.6,0.002]
[1761226286191,6.91693552,3844.8,3844.6,0.002]
[1761226286779,8.47213552,3844.8,3844.6,0.002]
[1761226288281,4.76236317,3844.7,3844.6,1e-08]
[1761226288484,0.50688,3844.3,3843.9,1e-08]
[1761226288660,4.66353681,3844.0,3843.9,1e-08]
[1761226288867,2.06208,3844.0,3843.9,1e-08]
[1761226289092,0.2142,3844.9,3843.9,0.47460001]
[1761226289399,2.60106489,3844.6,3843.9,0.47460001]
[1761226289566,2.60126532,3844.3,3843.9,0.47460001]
[1761226289764,3.362,3844.5,3843.9,1e-08]
[1761226289965,0.2142,3844.9,3843.9,1e-08]
[1761226289966,0.2142,3844.9,3843.9,0.47460001]
[1761226290176,2.6011936,3844.4,3843.9,0.47460001]
[1761226290379,3.62211936,3844.3,3843.9,1e-08]
[1761226290579,4.66353681,3844.0,3843.9,1e-08]
[1761226290773,8.02553681,3844.0,3843.9,1e-08]
[1761226291699,5.42408,3844.0,3843.9,1e-08]
[1761226291898,8.02553681,3844.0,3843.9,1e-08]
[1761226292597,9.08822606,3844.0,3843.9,1e-08]
[1761226293404,9.18752606,3844.0,3843.9,1e-08]
[1761226293788,5.72622606,3844.0,3843.9,1e-08]
[1761226294100,9.08822606,3844.0,3843.9,1e-08]
[1761226294403,9.18752606,3844.0,3843.9,1e-08]
[1761226294769,22.73148173,3844.0,3843.9,1e-08]
[1761226296671,4.66360449,3843.9,3843.8,0.002]
[1761226296905,7.50123512,3843.9,3843.8,0.002]
[1761226297588,12.81323512,3843.9,3843.8,0.002]
[1761226298192,10.86123512,3843.9,3843.8,0.002]
[1761226298703,4.66380754,3843.6,3843.5,0.002]
[1761226298900,4.66380754,3843.6,3843.4,1e-08]
[1761226298901,4.66387523,3843.5,3843.4,1e-08]
[1761226299067,5.02997523,3843.5,3843.4,1e-08]
[1761226299908,3.10894604,3843.1,3842.6,1e-08]
[1761226300109,3.10942007,3842.4,3841.0,0.2208]
[1761226300271,8.02662007,3842.4,3841.0,0.2208]
[1761226300588,8.12562007,3842.4,3841.0,0.2208]
[1761226300903,4.66489103,3842.0,3840.5,0.236]
[1761226301091,10.73468568,3842.0,3840.6,0.4746]
[1761226301405,8.78468568,3842.0,3841.2,0.236]
[1761226301989,8.88368568,3842.0,3841.2,0.236]
[1761226302185,8.88368568,3842.0,3840.5,0.236]
[1761226303474,5.51568568,3842.0,3840.5,0.7106]
[1761226303979,10.83468568,3842.0,3840.5,0.7106]
[1761226304376,10.83468568,3842.0,3841.1,0.236]
[1761226305018,8.88368568,3842.0,3841.1,0.236]
[1761226305516,8.88368568,3842.0,3840.5,0.236]
[1761226305716,8.88368568,3842.0,3840.5,0.7106]
[1761226306017,8.88268568,3842.0,3840.5,0.236]
[1761226306219,3.35460568,3842.0,3841.4,0.4746]
[1761226306388,2.60252483,3842.5,3841.1,0.236]
[1761226306389,13.54395567,3842.7,3841.9,0.4766]
[1761226306586,2.60281103,3842.0,3841.9,0.4766]
[1761226306814,3.369,3842.0,3841.9,0.4766]
[1761226307025,2.60243966,3842.6,3841.9,0.4766]
[1761226307317,3.10942134,3842.4,3841.9,0.4766]
[1761226307571,0.64549137,3843.6,3842.7,0.236]
[1761226307742,0.2121,3843.8,3842.7,0.236]
[1761226308020,2.60184133,3843.5,3842.8,0.4746]
[1761226308178,2.60160379,3843.8,3842.8,0.4746]
[1761226308378,1.5552,3843.6,3843.0,2.60213044]
[1761226308608,0.50688,3843.6,3843.0,2.6021242]
[1761226308809,0.13581096,3844.3,3843.1,0.4746]
[1761226308981,2.60129195,3844.3,3844.2,0.236]
[1761226309178,2.60151847,3844.0,3843.1,3.07664781]
[1761226309384,3.372,3843.9,3843.3,2.6019226]
[1761226309613,3.372,3843.8,3843.4,2.60184651]
[1761226310113,3.372,3843.8,3843.5,0.4746]
[1761226310711,0.1304,3843.6,3843.5,0.4746]
[1761226311010,3.371,3843.7,3843.1,0.236]
[1761226311211,3.87688,3843.6,3843.2,0.4746]
[1761226311515,2.60131372,3844.3,3843.2,0.4746]
[1761226311516,3.37,3843.5,3843.3,2.60191969]
[1761226312116,0.41732042,3844.6,3843.4,0.4746]
[1761226312283,3.371,3844.5,3844.2,2.60131195]
[1761226312487,0.001,3845.2,3845.1,0.236]
[1761226312888,0.001,3845.2,3845.1,0.7106]
[1761226313095,0.001,3845.2,3845.1,3.31131259]